bitfinex/quotes_ETHUSD_20251127
["timestamp","ask_amount","ask_price","bid_price","bid_amount"]
[1764209504554,0.30527853,3053.5,3052.8,0.4874]
[1764209504852,0.30527853,3053.5,3052.8,0.001]
[1764209504853,0.4835,3052.9,3052.8,0.001]
[1764209505039,0.4623,3053.4,3052.8,3.811]
[1764209505222,0.5762,3052.9,3052.8,3.811]
[1764209506257,0.4623,3053.1,3052.8,3.811]
[1764209506432,0.4643,3053.7,3053.0,0.4864]
[1764209506754,0.30561037,3053.6,3053.1,3.81]
[1764209506917,0.30561037,3053.5,3053.1,3.81]
[1764209507118,0.76791037,3053.5,3053.1,3.81]
[1764209507318,0.4835,3053.2,3053.1,3.81]
[1764209507735,0.78931258,3053.2,3053.1,3.81]
[1764209507933,0.9458,3053.2,3053.1,3.81]
[1764209508249,3.70029343,3053.6,3052.9,3.2754881]
[1764209508250,0.4623,3053.6,3052.9,3.2754881]
[1764209508425,0.4835,3053.2,3052.8,0.001]
[1764209508942,0.9458,3053.2,3052.8,3.27667218]
[1764209509318,0.4835,3053.2,3052.8,3.27667218]
[1764209509820,0.9458,3053.2,3052.8,3.27667218]
[1764209510021,0.9458,3053.2,3052.8,0.001]
[1764209510623,0.4835,3053.2,3052.8,0.001]
[1764209511042,0.4855,3053.2,3052.8,0.001]
[1764209511423,0.002,3053.2,3053.1,0.4864]
[1764209511746,0.002,3053.2,3053.1,3.76175947]
[1764209511918,0.002,3053.2,3053.1,0.4864]
[1764209512120,0.002,3053.2,3052.8,1.88114798]
[1764209512121,0.9478,3053.2,3052.8,3.48667522]
[1764209512316,0.0927,3053.1,3052.8,3.48667522]
[1764209512516,0.0927,3053.1,3052.8,0.211]
[1764209512822,0.0927,3053.1,3052.8,0.001]
[1764209513330,0.0927,3053.1,3052.9,3.81]
[1764209513856,0.4796,3053.0,3052.9,3.81]
[1764209515521,1.24822004,3053.0,3052.9,3.81]
[1764209515726,1.70076881,3053.0,3052.9,3.81]
[1764209515922,1.24822004,3053.0,3052.8,0.001]
[1764209516128,1.05762004,3052.9,3052.8,0.001]
[1764209520743,4.33319408,3052.9,3052.8,0.001]
[1764209520945,1.05762004,3052.9,3052.8,0.001]
[1764209527966,4.33319408,3052.9,3052.8,0.001]
[1764209528167,1.83947896,3052.9,3052.8,0.001]
[1764209528346,0.40282004,3052.9,3052.8,0.001]
[1764209531060,0.30632004,3052.9,3052.8,0.4815]
[1764209531256,0.30632004,3052.9,3052.8,0.001]
[1764209531586,0.77782004,3052.9,3052.8,0.001]
[1764209533374,0.30632004,3052.9,3052.8,0.9417]
[1764209533543,0.30632004,3052.9,3052.8,0.4815]
[1764209533973,4.66099408,3052.9,3052.8,0.001]
[1764209534145,1.13109811,3052.8,3051.1,0.001]
[1764209534486,0.505504,3051.9,3051.1,0.001]
[1764209534643,1.28462004,3051.9,3051.1,0.001]
[1764209534847,1.93804145,3051.9,3051.1,0.001]
[1764209535277,5.94028289,3051.9,3051.1,0.001]
[1764209535577,5.94028289,3051.9,3051.1,0.0775]
[1764209535578,5.84028289,3051.9,3051.1,0.0775]
[1764209535796,5.84028289,3051.9,3051.1,0.2875]
[1764209535797,0.97462004,3051.9,3051.1,0.2875]
[1764209536080,0.77512004,3051.9,3051.3,0.4602]
[1764209536269,0.30632004,3051.9,3051.8,0.4815]
[1764209536465,1.50742004,3051.9,3051.8,0.001]
[1764209536654,4.78406737,3051.9,3051.8,0.001]
[1764209536854,5.28347411,3051.9,3051.8,0.001]
[1764209537060,2.00682678,3051.9,3051.8,0.001]
[1764209537245,1.50742004,3051.9,3051.8,0.001]
[1764209538976,1.05502004,3051.9,3051.8,0.001]
[1764209539175,0.77782004,3051.9,3051.8,0.001]
[1764209539961,1.40742004,3051.9,3051.8,0.001]
[1764209540163,4.68406737,3051.9,3051.8,0.001]
[1764209540357,5.49011814,3051.9,3051.8,0.001]
[1764209540561,5.59011814,3051.9,3051.8,0.001]
[1764209541290,2.21347081,3051.9,3051.8,0.001]
[1764209541458,1.50742004,3051.9,3051.8,0.001]
[1764209541660,5.50966148,3051.9,3051.8,0.001]
[1764209541861,5.71966148,3051.9,3051.8,0.001]
[1764209542570,6.12516548,3051.9,3051.8,0.001]
[1764209543550,5.91516548,3051.9,3051.8,0.001]
[1764209543754,2.42658035,3051.9,3051.8,0.001]
[1764209543951,1.71742004,3051.9,3051.8,0.001]
[1764209544154,1.61742004,3051.9,3051.8,0.001]
[1764209546000,0.95502004,3051.9,3051.8,0.001]
[1764209546183,1.16502004,3051.9,3051.8,0.001]
[1764209546371,4.89406737,3051.9,3051.8,0.001]
[1764209546572,2.50703868,3051.9,3051.8,0.001]
[1764209546771,1.87743868,3051.9,3051.8,0.001]
[1764209546976,0.51632004,3051.9,3051.8,0.001]
[1764209547883,0.30632004,3051.9,3051.8,0.4815]
[1764209548063,0.002,3052.0,3051.8,0.4815]
[1764209548388,0.002,3052.0,3051.9,0.4805]
[1764209548788,0.002,3052.0,3051.9,0.9407]
[1764209550392,0.002,3052.0,3051.9,0.4805]
[1764209552998,0.002,3052.0,3051.9,4.2905]
[1764209554898,1.23170811,3052.0,3051.8,0.001]
[1764209555193,0.505504,3051.5,3051.4,0.001]
[1764209555391,6.16324906,3051.5,3051.4,0.001]
[1764209555594,6.88884317,3051.5,3051.4,0.001]
[1764209556272,5.94398306,3051.5,3051.4,0.001]
[1764209556473,6.95416997,3051.5,3051.4,0.001]
[1764209556694,11.17610692,3051.5,3051.4,0.001]
[1764209557273,11.07610692,3051.5,3051.4,0.001]
[1764209557483,11.17610692,3051.5,3051.4,0.001]
[1764209558574,11.4311973,3051.5,3051.4,0.001]
[1764209560812,0.405504,3051.0,3050.8,0.001]
[1764209561113,7.47458306,3050.9,3050.8,0.001]
[1764209561271,1.23109811,3050.8,3050.4,0.001]
[1764209561473,0.505504,3050.6,3050.4,0.001]
[1764209561676,1.87677699,3050.6,3050.4,0.001]
[1764209561880,2.35917699,3050.6,3050.4,0.001]
[1764209562299,5.81317699,3050.6,3050.4,0.001]
[1764209562495,7.18155713,3050.6,3050.4,0.001]
[1764209562698,11.39490201,3050.6,3050.4,0.001]
[1764209562901,10.51463713,3050.6,3050.4,0.001]
[1764209563400,0.405504,3049.7,3048.8,0.4761]
[1764209563574,0.1,3049.5,3048.8,0.4761]
[1764209563774,0.40580811,3049.5,3048.8,0.4761]
[1764209563976,0.30580811,3049.5,3049.4,0.5424]
[1764209564176,0.21,3049.6,3049.4,0.5424]
[1764209564702,0.21,3049.6,3049.5,0.4666]
[1764209565287,0.72559411,3050.2,3049.5,0.9427]
[1764209565600,0.51502082,3050.1,3049.6,0.4666]
[1764209565805,0.30502082,3050.0,3049.6,0.4666]
[1764209566105,0.40502082,3049.9,3049.6,0.4666]
[1764209566404,0.21,3050.1,3049.7,0.4761]
[1764209566603,0.21,3050.1,3049.8,0.4666]
[1764209566782,0.21,3050.1,3049.7,0.4761]
[1764209566783,0.21,3050.1,3050.0,0.4666]
[1764209567103,0.1,3050.5,3049.4,0.0758]
[1764209567303,0.30485147,3050.5,3049.7,0.4761]
[1764209567605,0.30485147,3050.4,3049.7,0.4761]
[1764209567807,0.21,3050.6,3049.7,0.4761]
[1764209568019,0.51482782,3050.6,3050.3,0.4666]
[1764209569817,0.51482782,3050.6,3050.5,0.4666]
[1764209570180,0.30482782,3050.9,3050.5,0.9427]
[1764209570413,0.30480661,3050.8,3050.6,0.4761]
[1764209570580,0.21,3051.0,3050.8,0.4666]
[1764209570902,0.51480254,3051.0,3050.9,0.4666]
[1764209571103,0.51480254,3051.1,3050.9,0.4666]
[1764209571311,0.483,3051.0,3050.2,0.6624]
[1764209571493,0.30480254,3050.9,3050.3,0.4761]
[1764209571879,0.30480254,3050.9,3050.8,0.4666]
[1764209572077,0.30480254,3051.0,3050.8,0.4666]
[1764209573182,0.30480254,3051.0,3050.5,0.4761]
[1764209573787,3.58243928,3051.0,3050.3,0.4761]
[1764209574023,0.30480254,3050.9,3050.3,0.4761]
[1764209574924,0.30480254,3050.8,3050.3,0.4761]
[1764209575222,0.31,3051.1,3050.3,0.4761]
[1764209575422,0.3048841,3051.0,3050.3,0.4761]
[1764209575942,0.3048841,3051.0,3050.2,0.1863]
[1764209576091,0.30492449,3050.9,3050.4,0.4761]
[1764209576285,0.1,3051.1,3050.4,0.4761]
[1764209576722,0.40491276,3051.1,3050.4,0.4761]
[1764209577938,0.30491276,3051.1,3050.4,0.4761]
[1764209578229,0.30491276,3051.0,3050.3,0.4761]
[1764209578394,0.30491276,3050.9,3050.3,0.4761]
[1764209578597,0.4824,3051.1,3050.3,0.4761]
[1764209578905,0.30503891,3051.0,3050.3,0.4761]
[1764209579118,0.405504,3050.8,3050.2,0.1863]
[1764209579295,0.483,3050.3,3049.6,0.4761]
[1764209579493,0.583,3050.3,3049.6,0.4761]
[1764209579908,0.4824,3050.7,3049.6,0.4761]
[1764209579909,0.1876,3050.9,3050.2,0.6529]
[1764209580218,0.21,3050.6,3050.4,0.4666]
[1764209580588,0.30520111,3050.9,3050.5,0.9427]
[1764209580790,0.30529345,3050.8,3050.6,0.4666]
[1764209581021,3.46503684,3051.2,3050.8,0.4666]
[1764209581195,0.66179069,3051.1,3050.8,0.4666]
[1764209581386,0.30528701,3051.0,3050.8,0.9427]
[1764209581589,0.30528701,3050.9,3050.8,0.4761]
[1764209581822,0.002,3051.1,3050.9,0.4666]
[1764209582122,0.30544588,3051.0,3050.9,0.4666]
[1764209582647,0.30544588,3051.0,3050.5,0.4761]
[1764209582791,0.30544588,3050.9,3050.5,0.4761]
[1764209582994,0.002,3051.1,3050.5,0.85164464]
[1764209583196,0.002,3051.1,3050.5,7.4079364]
[1764209583197,0.30563609,3051.0,3050.5,7.4079364]
[1764209583427,0.002,3051.1,3050.6,0.4761]
[1764209583728,0.002,3051.1,3051.0,0.4666]
[1764209584110,0.30781544,3051.1,3051.0,0.9427]
[1764209584314,0.30781544,3051.1,3051.0,0.4666]
[1764209585398,0.30781544,3051.1,3051.0,0.9427]
[1764209585627,0.30781544,3051.1,3050.5,4.33972303]
[1764209585829,0.30581544,3051.0,3050.6,0.4339723]
[1764209586031,0.30581544,3051.0,3050.6,0.9100723]
[1764209586323,0.002,3051.1,3050.9,0.4666]
[1764209586826,0.002,3051.1,3051.0,4.2766]
[1764209587027,0.30798816,3051.1,3051.0,4.2766]
[1764209587712,0.002,3051.1,3051.0,4.2766]
[1764209588413,0.30798816,3051.1,3051.0,4.2766]
[1764209588732,0.002,3051.1,3051.0,4.2766]
[1764209590027,0.30798816,3051.1,3051.0,4.2766]
[1764209590204,0.002,3051.1,3051.0,4.2766]
[1764209590410,0.002,3051.1,3051.0,4.7597]
[1764209591328,0.30798816,3051.1,3051.0,4.7597]
[1764209591505,0.002,3051.1,3051.0,0.9497]
[1764209592230,0.30798816,3051.1,3051.0,0.9497]
[1764209592433,0.002,3051.1,3051.0,0.9497]
[1764209593029,0.30798816,3051.1,3051.0,0.9497]
[1764209593222,0.002,3051.1,3051.0,0.9497]
[1764209593915,0.30798816,3051.1,3051.0,0.9497]
[1764209597252,0.30798816,3051.1,3051.0,4.7597]
[1764209597424,0.30798816,3051.1,3051.0,5.56344208]
[1764209599749,0.30798816,3051.1,3051.0,4.7597]
[1764209601045,0.30798816,3051.1,3051.0,8.03731389]
[1764209601747,0.30798816,3051.1,3051.0,4.7597]
[1764209601952,0.30798816,3051.1,3051.0,8.03731389]
[1764209602618,0.30798816,3051.1,3051.0,4.2766]
[1764209602823,0.30798816,3051.1,3051.0,8.81374371]
[1764209603124,0.30798816,3051.1,3051.0,5.53612982]
[1764209604125,0.30798816,3051.1,3051.0,8.81374371]
[1764209604126,0.002,3051.1,3051.0,8.81374371]
[1764209604349,0.002,3051.1,3051.0,9.02374371]
[1764209607418,0.002,3051.1,3051.0,5.53612982]
[1764209607632,0.002,3051.1,3051.0,4.9697]
[1764209607856,0.002,3051.1,3051.0,8.24731389]
[1764209609956,0.002,3051.1,3051.0,4.9697]
[1764209610629,0.002,3051.1,3051.0,8.24731389]
[1764209611030,0.002,3051.1,3051.0,8.03731389]
[1764209611259,0.002,3051.1,3051.0,9.37882691]
[1764209612343,0.002,3051.5,3051.1,3.808]
[1764209612659,0.30688184,3051.4,3051.2,0.4831]
[1764209612833,0.30688184,3051.3,3051.2,0.4831]
[1764209613029,0.30688184,3051.3,3051.2,1.70188408]
[1764209613235,0.30688184,3051.3,3051.2,2.16858408]
[1764209614054,0.30688184,3051.3,3051.2,5.44598313]
[1764209616662,0.002,3051.3,3051.2,9.25398313]
[1764209620459,24.0094939,3094.0,3051.2,9.25398313]
[1764209620646,4.11977634,3052.3,3051.4,0.4662]
[1764209620840,0.30678865,3052.2,3051.4,0.6762]
[1764209621039,0.30678865,3052.1,3051.4,0.6762]
[1764209621246,0.30678865,3052.0,3051.4,0.6762]
[1764209621459,0.30678865,3051.9,3051.4,0.6762]
[1764209621653,0.30678865,3051.8,3051.4,0.6762]
[1764209621953,0.30678865,3051.7,3051.4,1.50110991]
[1764209622156,0.30678865,3051.6,3051.5,3.808]
[1764209622845,0.30678865,3051.6,3051.5,4.7617]
[1764209623241,0.30678865,3051.6,3051.5,8.03877684]
[1764209623556,0.30678865,3051.6,3051.5,4.7617]
[1764209623743,0.30678865,3051.6,3051.5,5.66907609]
[1764209626755,0.30678865,3051.6,3051.5,4.2742]
[1764209626956,0.30678865,3051.6,3051.5,3.808]
[1764209627264,0.30678865,3051.6,3051.5,4.2742]
[1764209628748,0.37436032,3051.6,3051.5,4.018]
[1764209628946,0.37436032,3051.6,3051.5,3.808]
[1764209629255,0.84076032,3051.6,3050.9,4.0028]
[1764209629457,0.30696032,3051.5,3051.0,0.21]
[1764209629659,0.30696032,3051.4,3051.0,0.68003]
[1764209629843,0.30696032,3051.3,3051.0,1.16753]
[1764209630038,0.4664,3051.6,3051.0,1.16753]
[1764209630274,0.3070126,3051.5,3051.0,0.95753]
[1764209630570,0.3070126,3051.4,3051.0,1.16753]
[1764209630873,0.3070126,3051.3,3051.0,0.47003]
[1764209631174,0.79299411,3051.1,3050.4,0.001]
[1764209631471,0.6626,3050.5,3050.4,0.001]
[1764209631769,0.9696126,3050.5,3050.4,0.001]
[1764209631969,1.0326126,3050.5,3050.4,0.001]
[1764209633165,0.3070126,3050.5,3050.4,0.001]
[1764209633366,0.7903126,3050.5,3050.4,0.001]
[1764209634266,0.3070126,3050.5,3050.4,0.4672]
[1764209634656,0.7934126,3050.5,3050.4,0.001]
[1764209635769,0.3070126,3050.5,3050.4,0.4672]
[1764209635970,0.7892126,3050.5,3050.4,0.001]
[1764209636374,0.3070126,3050.5,3050.4,0.4672]
[1764209636578,0.3070126,3050.5,3050.4,0.9547]
[1764209636797,0.002,3051.4,3050.4,4.23295858]
[1764209637109,0.30623606,3051.3,3050.5,1.14189586]
[1764209637243,0.30623606,3051.2,3050.5,1.14189586]
[1764209637449,0.30623606,3051.1,3050.6,0.4875]
[1764209637670,0.30623606,3051.0,3050.6,0.4875]
[1764209637865,3.74959617,3051.4,3050.6,0.4875]
[1764209638064,3.74959617,3051.4,3050.5,4.018]
[1764209638065,0.77661451,3051.3,3050.5,4.018]
[1764209638265,0.0788,3050.6,3050.4,0.001]
[1764209638467,0.4864,3050.5,3050.4,0.001]
[1764209638774,3.27773408,3050.9,3050.4,0.001]
[1764209638944,0.30620986,3050.8,3050.4,0.4672]
[1764209639147,0.063,3051.1,3050.4,0.4672]
[1764209639148,0.30620986,3050.7,3050.4,0.4672]
[1764209639376,3.34051486,3051.1,3050.4,0.4672]
[1764209639572,0.77655051,3051.0,3050.4,0.4672]
[1764209639752,0.30615051,3050.9,3050.4,0.4672]
[1764209639959,0.30615051,3050.8,3050.4,0.9547]
[1764209640154,0.30615051,3050.7,3050.4,0.4885]
[1764209640353,0.002,3051.4,3050.5,0.6975]
[1764209640559,0.30608364,3051.3,3050.6,0.4662]
[1764209640766,0.30608364,3051.2,3050.7,3.27793621]
[1764209640973,0.002,3051.4,3051.3,0.4662]
[1764209641174,0.002,3051.4,3050.8,0.63316362]
[1764209641175,0.002,3051.4,3051.1,0.4662]
[1764209641372,0.30609834,3051.3,3050.7,4.2955]
[1764209641574,0.30609834,3051.3,3050.7,3.808]
[1764209641575,0.77649834,3051.3,3050.7,3.808]
[1764209641783,0.30609834,3051.2,3050.7,4.51660437]
[1764209642291,0.4704,3051.2,3050.7,4.51660437]
[1764209642592,0.30607917,3051.1,3050.7,3.808]
[1764209642957,3.27729219,3051.3,3050.7,3.808]
[1764209643257,0.30609927,3051.2,3050.7,3.808]
[1764209643458,0.4864,3050.8,3050.7,3.808]
[1764209643687,0.4864,3050.8,3050.4,0.001]
[1764209643859,0.4864,3050.5,3050.4,0.001]
[1764209644401,0.85550569,3050.5,3050.4,0.001]
[1764209644891,0.79250569,3050.5,3050.4,0.001]
[1764209646185,4.07065681,3050.5,3050.4,0.001]
[1764209646393,4.13365681,3050.5,3050.4,0.001]
[1764209646602,4.87482506,3050.5,3050.4,0.001]
[1764209646794,5.60041917,3050.5,3050.4,0.001]
[1764209647093,6.10592317,3050.5,3050.4,0.001]
[1764209647468,2.32226805,3050.5,3050.4,0.001]
[1764209647789,4.85925092,3050.5,3050.4,0.001]
[1764209649198,4.95925092,3050.5,3050.4,0.001]
[1764209649397,5.26475492,3050.5,3050.4,0.001]
[1764209649701,5.36475492,3050.5,3050.4,0.001]
[1764209650875,4.95925092,3050.5,3050.4,0.001]
[1764209651082,5.36475492,3050.5,3050.4,0.001]
[1764209651487,6.2500336,3050.5,3050.4,0.001]
[1764209653002,5.7445296,3050.5,3050.4,0.001]
[1764209653203,6.0545296,3050.5,3050.4,0.001]
[1764209653979,6.4600336,3050.5,3050.4,0.001]
[1764209654712,9.62394695,3050.5,3050.4,0.001]
[1764209655705,9.75530876,3050.5,3050.4,0.001]
[1764209656069,0.72559411,3050.4,3050.3,0.001]
[1764209656273,3.05680417,3050.4,3050.3,0.001]
[1764209656705,3.18816727,3050.4,3050.3,0.001]
[1764209657282,6.87192985,3050.4,3050.3,0.001]
[1764209658014,4.78405838,3050.4,3050.3,0.001]
[1764209658574,0.30610569,3050.4,3050.3,0.4512]
[1764209658787,3.27816259,3050.5,3050.3,0.4512]
[1764209659007,0.30610569,3050.4,3050.3,0.4512]
[1764209659210,0.21,3050.9,3050.5,0.4502]
[1764209659507,0.30591703,3050.8,3050.7,0.4502]
[1764209660019,0.30591703,3051.0,3050.7,0.9297]
[1764209660177,0.30587732,3050.9,3050.8,0.4502]
[1764209660509,0.30587732,3050.9,3050.8,0.4795]
[1764209660707,0.30587732,3050.9,3050.8,0.9297]
[1764209660907,0.30587732,3051.1,3050.8,0.9297]
[1764209661208,0.30587732,3051.0,3050.9,0.4795]
[1764209661578,0.30587732,3051.0,3050.9,0.9297]
[1764209661770,0.30587732,3051.3,3050.9,0.9297]
[1764209661982,0.30587732,3051.2,3050.9,0.47377]
[1764209662188,0.30597282,3051.1,3050.6,0.4795]
[1764209662388,0.002,3051.4,3051.0,0.4502]
[1764209662584,0.002,3051.4,3050.6,0.4795]
[1764209662585,0.30595164,3051.3,3050.6,0.4795]
[1764209662797,0.30595164,3051.2,3050.7,1.08438002]
[1764209663090,0.002,3051.4,3051.3,0.648]
[1764209663294,0.002,3051.4,3051.3,3.92529164]
[1764209663574,0.002,3051.4,3051.3,4.40479164]
[1764209664310,0.002,3051.4,3051.3,5.13038575]
[1764209664514,0.002,3051.4,3051.3,6.62482478]
[1764209665212,0.002,3051.4,3051.3,7.03032878]
[1764209665577,0.002,3051.8,3051.3,7.03032878]
[1764209665578,0.002,3051.8,3051.4,1.13109811]
[1764209665777,0.002,3051.8,3051.7,0.4502]
[1764209666306,0.002,3051.8,3051.7,0.9297]
[1764209666903,0.002,3051.8,3051.3,0.8873]
[1764209667132,0.002,3051.8,3051.7,0.4502]
[1764209667491,0.002,3051.8,3051.7,0.9297]
[1764209667707,0.002,3051.8,3051.3,0.6773]
[1764209668021,0.002,3051.8,3051.3,0.1978]
[1764209668022,0.002,3051.4,3051.3,0.1978]
[1764209668392,0.002,3051.4,3051.3,1.0165304]
[1764209668587,0.002,3051.4,3051.3,4.77332204]
[1764209668903,0.002,3051.4,3051.3,1.4960304]
[1764209669305,0.002,3051.4,3051.3,4.77332204]
[1764209669511,0.002,3051.4,3051.3,8.58132204]
[1764209669706,0.002,3051.4,3051.3,5.3040304]
[1764209670579,0.002,3051.4,3051.3,8.58132204]
[1764209671401,0.002,3051.4,3051.3,5.3040304]
[1764209671813,0.002,3051.4,3051.3,8.58132204]
[1764209671989,0.002,3051.4,3051.3,5.5140304]
[1764209672489,0.002,3051.4,3051.3,8.79132204]
[1764209673635,0.002,3051.4,3051.3,5.5140304]
[1764209673833,0.002,3051.4,3051.3,8.79132204]
[1764209673990,0.002,3051.4,3051.3,5.3040304]
[1764209675033,0.002,3051.4,3051.3,8.58132204]
[1764209675392,0.002,3051.4,3051.3,8.98682604]
[1764209676200,0.002,3051.4,3051.3,5.3040304]
[1764209676527,0.002,3051.4,3051.3,8.79132204]
[1764209677091,0.002,3051.4,3051.3,9.92242015]
[1764209677297,0.002,3051.4,3051.3,6.23962451]
[1764209677531,0.002,3051.4,3051.3,9.51691615]
[1764209678440,0.002,3051.4,3051.3,9.92242015]
[1764209678642,0.002,3051.8,3051.7,4.53159411]
[1764209678953,0.4996,3051.8,3051.4,3.806]
[1764209679103,0.1,3051.7,3050.5,4.2855]
[1764209679303,0.1,3051.4,3050.7,0.21]
[1764209679557,6.55458328,3051.3,3050.7,0.21]
[1764209680315,3.27729164,3051.3,3050.7,0.21]
[1764209680507,3.27729164,3051.3,3050.7,0.9873647]
[1764209680728,3.27729164,3051.3,3050.7,1.4732647]
[1764209680928,6.55458328,3051.3,3050.7,0.9873647]
[1764209681125,6.55458328,3051.3,3050.6,4.016]
[1764209681426,6.55436848,3051.4,3050.6,4.016]
[1764209681945,3.27718424,3051.4,3050.7,0.4859]
[1764209683523,0.72559411,3051.6,3050.7,0.4859]
[1764209683728,0.3049506,3051.5,3050.7,0.4859]
[1764209684014,0.1,3051.4,3050.7,0.98800495]
[1764209684225,0.4049506,3051.4,3050.8,3.806]
[1764209684516,0.4069506,3051.4,3050.8,3.806]
[1764209684738,0.3069506,3051.4,3050.8,3.806]
[1764209685543,3.27729164,3051.3,3050.9,3.806]
[1764209686042,6.55458328,3051.3,3050.9,3.806]
[1764209686341,0.30550302,3051.2,3050.8,3.806]
[1764209686641,6.55458328,3051.3,3050.8,4.3340905]
[1764209686843,6.55458328,3051.3,3050.9,0.4859]
[1764209686844,3.27729164,3051.3,3050.9,0.4859]
[1764209687209,0.30578495,3051.2,3050.9,0.4859]
[1764209687416,0.002,3051.4,3051.3,0.6721]
[1764209687942,0.30776642,3051.4,3051.1,0.1833]
[1764209688247,0.30576642,3051.3,3051.1,0.1833]
[1764209688544,0.30576642,3051.2,3051.1,0.1833]
[1764209688934,3.5831565,3051.3,3051.1,0.6721]
[1764209689128,0.30576642,3051.2,3051.1,0.6721]
[1764209689940,0.39286642,3051.2,3051.0,3.806]
[1764209690114,0.30576642,3051.1,3051.0,3.806]
[1764209690315,0.85116642,3051.1,3051.0,3.806]
[1764209690560,1.59176108,3051.1,3051.0,3.806]
[1764209690760,0.1,3050.9,3050.6,0.001]
[1764209690924,0.2423,3050.7,3050.6,0.001]
[1764209691258,0.64806642,3050.7,3050.6,0.001]
[1764209691419,1.10636642,3050.7,3050.6,0.001]
[1764209691615,1.89356789,3050.7,3050.6,0.001]
[1764209693433,5.1715041,3050.7,3050.6,0.001]
[1764209697515,4.7132041,3050.7,3050.6,0.001]
[1764209697723,4.9232041,3050.7,3050.6,0.001]
[1764209698722,4.8232041,3050.7,3050.6,0.001]
[1764209698922,5.3815041,3050.7,3050.6,0.001]
[1764209700944,4.9232041,3050.7,3050.6,0.001]
[1764209701147,4.8232041,3050.7,3050.6,0.001]
[1764209701523,4.9232041,3050.7,3050.6,0.001]
[1764209702426,4.03600263,3050.7,3050.6,0.001]
[1764209705437,1.88800464,3050.3,3050.2,0.001]
[1764209705849,1.58223822,3050.3,3050.2,0.001]
[1764209706050,5.89183502,3050.3,3050.2,0.001]
[1764209707959,3.58400269,3050.3,3050.2,0.488]
[1764209708155,3.79400269,3050.3,3050.2,0.9862]
[1764209708331,3.79400269,3050.3,3050.2,0.488]
[1764209708957,3.79400269,3050.3,3050.2,0.001]
[1764209709158,3.86920269,3050.3,3050.2,0.001]
[1764209709348,5.56945179,3050.3,3050.2,0.001]
[1764209709666,6.2950459,3050.3,3050.2,0.001]
[1764209711374,4.58509811,3050.2,3050.0,0.001]
[1764209711542,0.1,3048.9,3048.2,0.4878]
[1764209711747,0.30563663,3048.8,3048.2,0.4878]
[1764209711949,0.30563663,3048.7,3048.2,0.4878]
[1764209712150,0.30563663,3048.6,3048.2,0.4878]
[1764209712345,3.28019418,3048.6,3048.5,0.4848]
[1764209712663,0.21,3048.9,3048.5,0.4848]
[1764209712864,0.21,3048.9,3048.8,0.4848]
[1764209712865,3.79550296,3048.9,3048.8,0.4848]
[1764209713371,3.79550296,3048.9,3048.8,0.9726]
[1764209713968,3.79550296,3048.9,3048.8,0.4848]
[1764209714174,7.07537841,3048.9,3048.5,0.4878]
[1764209714369,0.30562751,3048.8,3048.0,0.1833]
[1764209714570,0.30562751,3048.8,3048.1,0.4878]
[1764209714943,0.30562751,3048.8,3048.7,0.4848]
[1764209715468,0.30562751,3048.8,3048.7,0.9726]
[1764209716050,0.0938,3049.7,3048.7,0.9726]
[1764209716257,0.72559411,3049.3,3048.8,0.9726]
[1764209716479,0.30533215,3049.2,3048.8,0.9726]
[1764209716681,0.30533215,3049.2,3048.9,0.4878]
[1764209716845,0.21,3049.5,3049.1,0.6665]
[1764209717050,3.27901105,3049.7,3049.4,0.4848]
[1764209717370,0.30529347,3049.6,3049.4,0.4848]
[1764209717551,0.30536099,3049.5,3049.1,0.1817]
[1764209717762,0.30536676,3049.4,3049.2,0.4878]
[1764209718070,0.1,3049.7,3049.2,0.4878]
[1764209718277,0.30549696,3049.6,3049.3,0.4848]
[1764209718451,3.58465237,3049.6,3049.3,0.4848]
[1764209718655,0.30549696,3049.5,3049.4,0.4878]
[1764209719058,0.30549696,3049.5,3049.4,0.9726]
[1764209719776,0.30549696,3049.5,3049.1,0.1817]
[1764209719982,0.99187965,3049.5,3048.3,0.001]
[1764209720151,0.1,3049.1,3048.4,0.4878]
[1764209720349,3.27987142,3048.9,3048.4,0.4878]
[1764209720677,0.40549696,3048.8,3048.4,0.4878]
[1764209720870,0.30549696,3048.7,3048.4,0.4878]
[1764209721581,0.30549696,3048.7,3048.6,0.4858]
[1764209722549,0.30549696,3048.7,3048.6,0.9736]
[1764209722748,6.55989681,3048.9,3048.6,0.9736]
[1764209722964,0.30549696,3048.8,3048.6,0.4858]
[1764209723182,0.30549696,3048.7,3048.6,0.4858]
[1764209723389,0.30549696,3048.7,3048.6,0.9736]
[1764209723676,0.30549696,3048.8,3048.6,0.9736]
[1764209723894,0.30549696,3048.7,3048.6,0.9736]
[1764209724088,0.30549696,3048.7,3048.6,0.4888]
[1764209724258,0.30549696,3048.7,3048.6,0.9736]
[1764209724456,3.58558355,3048.7,3048.6,0.9736]
[1764209724756,0.30549696,3048.7,3048.6,0.9736]
[1764209725167,6.55931258,3049.1,3048.6,0.9736]
[1764209725369,0.1,3048.9,3048.6,0.9736]
[1764209725581,0.30582857,3048.8,3048.6,0.9736]
[1764209725782,0.30582857,3048.7,3048.6,0.9736]
[1764209725987,0.30582857,3048.9,3048.6,0.9736]
[1764209726184,0.30582857,3048.8,3048.6,0.001]
[1764209726485,3.48944118,3049.3,3048.6,0.001]
[1764209726681,0.30582422,3049.2,3048.7,0.9726]
[1764209726982,0.30582422,3049.1,3048.7,0.9726]
[1764209727284,0.30582422,3049.0,3048.7,0.9726]
[1764209727480,3.37261677,3049.9,3048.8,0.4878]
[1764209727481,0.31,3049.5,3048.8,0.4878]
[1764209727679,0.30586689,3049.4,3048.9,0.4848]
[1764209727978,0.30586689,3049.3,3048.9,0.4848]